[Event "Panchenko Memorial 2019"]
[Site "Chelyabinsk"]
[Date "2019.09.15"]
[Round "7.10"]
[White "Yudin, Sergei"]
[Black "Sitnikov, Anton"]
[Result "1-0"]
[ECO "C05"]
[WhiteElo "2494"]
[BlackElo "2405"]
[Annotator "ChessBase"]
[PlyCount "95"]
[EventDate "2019.09.09"]
[EventType "swiss"]
[EventCountry "RUS"]
[SourceTitle "playchess.com"]
[Source "ChessBase"]
[SourceQuality "1"]
[TimeControl "5400+30"]

1. e4 {[%emt 0:04:25]} e6 {[%emt 0:00:00]} 2. d4 {[%emt 0:00:34]} d5 {[%emt 0:00:00]} 3. Nd2 {[%emt 0:00:05]} Nf6 {[%emt 0:00:00]} 4. e5 {[%emt 0:01:54]} Nfd7 {[%emt 0:00:05]} 5. f4 {[%emt 0:00:38]} c5 {[%emt 0:00:08]} 6. Ngf3 {[%emt 0:00:13]} Nc6 {[%emt 0:00:06]} 7. Nb3 {[%emt 0:01:17]} c4 {[%emt 0:01:05]} 8. Nbd2 {[%emt 0:00:05]} Qa5 {[%emt 0:00:37]} 9. c3 {[%emt 0:02:45]} b5 {[%emt 0:00:10]} 10. b4 {[%emt 0:03:20]} Qb6 {[%emt 0:01:39]} 11. Rb1 {[%emt 0:14:04]} a5 {[%emt 0:00:10]} 12. a3 {[%emt 0:00:01]} axb4 {[%emt 0:00:34]} 13. axb4 {[%emt 0:00:17]} Ra2 {[%emt 0:02:36]} 14. Be2 {[%emt 0:04:04]} Qa7 {[%emt 0:15:37]} 15. Nf1 {[%emt 0:05:02]} Nb6 {[%emt 0:00:40]} 16. Ne3 {[%emt 0:01:09]} Be7 {[%emt 0:50:34]} 17. O-O {[%emt 0:04:18]} O-O {[%emt 0:16:14]} 18. Kh1 {[%emt 0:11:27]} Bd7 {[%emt 0:00:06]} 19. Bd2 {[%emt 0:02:11]} f6 {[%emt 0:01:36]} 20. exf6 {[%emt 0:02:39]} Bxf6 {[%emt 0:00:03]} 21. Qe1 {[%emt 0:00:43]} Be8 {[%emt 0:00:43]} 22. Ng5 {[%emt 0:10:53]} Bg6 {[%emt 0:03:01]} 23. Rd1 {[%emt 0:03:09]} Qe7 {[%emt 0:04:54]} 24. Bg4 {[%emt 0:00:56]} Bxg5 {[%emt 0:00:43]} 25. fxg5 {[%emt 0:00:06]} Rxf1+ {[%emt 0:00:05]} 26. Nxf1 {[%emt 0:00:12]} Bf5 {[%emt 0:00:20]} 27. Bf3 {[%emt 0:00:51]} Bc2 {[%emt 0:00:43]} 28. Ra1 {[%emt 0:01:38]} Rxa1 {[%emt 0:00:05]} 29. Qxa1 {[%emt 0:00:03]} Qa7 {[%emt 0:01:21]} 30. Qe1 {[%emt 0:00:50]} Qf7 {[%emt 0:00:09]} 31. Qg3 {[%emt 0:01:11]} Be4 {[%emt 0:00:40]} 32. Qd6 {[%emt 0:02:30]} Bxf3 {[%emt 0:00:19]} 33. Qxc6 {[%emt 0:00:49]} Be4 {[%emt 0:00:47]} 34. Kg1 {[%emt 0:00:58]} Nd7 {[%emt 0:00:29]} 35. Qxb5 {[%emt 0:00:33]} h5 {[%emt 0:00:18]} 36. gxh6 {[%emt 0:01:57]} gxh6 {[%emt 0:00:23]} 37. Ng3 {[%emt 0:00:15]} Bd3 {[%emt 0:00:57]} 38. Bxh6 {[%emt 0:01:06]} Kh7 {[%emt 0:00:14]} 39. Be3 {[%emt 0:01:38]} Nf6 {[%emt 0:00:13]} 40. Qb8 {[%emt 0:00:39]} Ne4 {[%emt 0:00:06]} 41. Bf4 {[%emt 0:03:10]} Nxc3 {[%emt 0:00:28]} 42. Qe5 {[%emt 0:00:06]} Bg6 {[%emt 0:01:19]} 43. h4 {[%emt 0:01:03]} Nb5 {[%emt 0:00:16]} 44. Qg5 {[%emt 0:02:38]} c3 {[%emt 0:00:42]} 45. Qh6+ {[%emt 0:01:45]} Kg8 {[%emt 0:00:04]} 46. Be5 {[%emt 0:00:07]} Qh7 {[%emt 0:00:58]} 47. Qg5 {[%emt 0:00:16]} c2 {[%emt 0:00:38]} 48. h5 {[%emt 0:00:55]} 1-0

[Event "Panchenko Memorial 2019"]
[Site "Chelyabinsk"]
[Date "2019.09.16"]
[Round "8.1"]
[White "Volkov, Sergey"]
[Black "Sivuk, Vitaly"]
[Result "1-0"]
[ECO "E15"]
[WhiteElo "2557"]
[BlackElo "2559"]
[Annotator "ChessBase"]
[PlyCount "85"]
[EventDate "2019.09.09"]
[EventType "swiss"]
[EventCountry "RUS"]
[SourceTitle "playchess.com"]
[Source "ChessBase"]
[SourceQuality "1"]
[TimeControl "5400+30"]

1. d4 {[%emt 0:00:00]} Nf6 {[%emt 0:00:00]} 2. c4 {[%emt 0:00:00]} e6 {[%emt 0:00:00]} 3. Nf3 {[%emt 0:00:00]} b6 {[%emt 0:00:00]} 4. g3 {[%emt 0:00:00]} c6 {[%emt 0:00:40]} 5. Bg2 {[%emt 0:05:31]} Be7 {[%emt 0:00:33]} 6. O-O {[%emt 0:02:19]} O-O {[%emt 0:00:13]} 7. b3 {[%emt 0:02:19]} d5 {[%emt 0:00:09]} 8. Bb2 {[%emt 0:00:25]} Bb7 {[%emt 0:01:25]} 9. Nc3 {[%emt 0:02:33]} Na6 {[%emt 0:00:53]} 10. e3 {[%emt 0:05:45]} c5 {[%emt 0:07:04]} 11. Qe2 {[%emt 0:02:01]} dxc4 {[%emt 0:05:52]} 12. bxc4 {[%emt 0:01:40]} Qc8 {[%emt 0:00:13]} 13. Rfd1 {[%emt 0:01:25]} Rd8 {[%emt 0:00:11]} 14. Rac1 {[%emt 0:03:11]} Ne4 {[%emt 0:03:30]} 15. Nb5 {[%emt 0:01:19]} Nc7 {[%emt 0:03:31]} 16. Ne5 {[%emt 0:01:23]} Ne8 {[%emt 0:06:13]} 17. d5 {[%emt 0:14:13]} N8f6 {[%emt 0:21:46]} 18. Nc6 {[%emt 0:17:42]} Bxc6 {[%emt 0:03:40]} 19. dxc6 {[%emt 0:00:06]} Rxd1+ {[%emt 0:03:05]} 20. Rxd1 {[%emt 0:01:14]} a6 {[%emt 0:00:11]} 21. Bxf6 {[%emt 0:10:11]} Bxf6 {[%emt 0:06:56]} 22. Bxe4 {[%emt 0:01:09]} axb5 {[%emt 0:00:07]} 23. cxb5 {[%emt 0:02:50]} Ra7 {[%emt 0:00:15]} 24. a4 {[%emt 0:01:21]} g6 {[%emt 0:01:47]} 25. Bc2 {[%emt 0:03:00]} Kg7 {[%emt 0:00:33]} 26. h4 {[%emt 0:00:50]} h5 {[%emt 0:00:10]} 27. Kg2 {[%emt 0:00:12]} Qb8 {[%emt 0:00:30]} 28. f4 {[%emt 0:00:33]} Qc8 {[%emt 0:01:33]} 29. g4 {[%emt 0:04:19]} hxg4 {[%emt 0:01:10]} 30. Qxg4 {[%emt 0:00:09]} Kf8 {[%emt 0:04:08]} 31. Kf2 {[%emt 0:05:27]} Qa8 {[%emt 0:00:47]} 32. h5 {[%emt 0:00:37]} gxh5 {[%emt 0:00:32]} 33. Qxh5 {[%emt 0:00:04]} Rc7 {[%emt 0:01:16]} 34. f5 {[%emt 0:01:08]} Qa5 {[%emt 0:02:18]} 35. Qh6+ {[%emt 0:00:39]} Ke7 {[%emt 0:00:37]} 36. Qf4 {[%emt 0:00:24]} e5 {[%emt 0:01:04]} 37. Qc4 {[%emt 0:00:32]} Ke8 {[%emt 0:03:33]} 38. Bb3 {[%emt 0:01:02]} e4 {[%emt 0:00:42]} 39. Qxe4+ {[%emt 0:00:59]} Kf8 {[%emt 0:00:28]} 40. Qc4 {[%emt 0:01:30]} Bg5 {[%emt 0:00:55]} 41. Kf3 {[%emt 0:00:57]} Re7 {[%emt 0:00:18]} 42. e4 {[%emt 0:00:16]} Qa7 {[%emt 0:03:56]} 43. Qc3 {[%emt 0:00:27]} 1-0

[Event "Panchenko Memorial 2019"]
[Site "Chelyabinsk"]
[Date "2019.09.16"]
[Round "8.2"]
[White "Nesterov, Arseniy"]
[Black "Zhigalko, Andrey"]
[Result "1/2-1/2"]
[ECO "A41"]
[WhiteElo "2473"]
[BlackElo "2539"]
[Annotator "ChessBase"]
[PlyCount "87"]
[EventDate "2019.09.09"]
[EventType "swiss"]
[EventCountry "RUS"]
[SourceTitle "playchess.com"]
[Source "ChessBase"]
[SourceQuality "1"]
[TimeControl "5400+30"]

1. d4 {[%emt 0:00:00]} d6 {[%emt 0:00:00]} 2. c4 {[%emt 0:00:00]} e5 {[%emt 0:00:00]} 3. d5 {[%emt 0:01:02]} Be7 {[%emt 0:00:00]} 4. Nf3 {[%emt 0:01:54]} f5 {[%emt 0:16:35]} 5. g3 {[%emt 0:10:49]} Nf6 {[%emt 0:01:18]} 6. Bg2 {[%emt 0:00:29]} O-O {[%emt 0:02:29]} 7. O-O {[%emt 0:00:17]} Na6 {[%emt 0:11:02]} 8. Nc3 {[%emt 0:01:56]} h6 {[%emt 0:14:14]} 9. e4 {[%emt 0:22:01]} Nc5 {[%emt 0:14:41]} 10. exf5 {[%emt 0:00:39]} Bxf5 {[%emt 0:00:04]} 11. Be3 {[%emt 0:02:19]} Nce4 {[%emt 0:01:21]} 12. Nxe4 {[%emt 0:01:22]} Nxe4 {[%emt 0:09:29]} 13. Nd2 {[%emt 0:03:04]} Nxd2 {[%emt 0:01:17]} 14. Qxd2 {[%emt 0:00:08]} Bg5 {[%emt 0:00:13]} 15. f4 {[%emt 0:06:37]} exf4 {[%emt 0:01:01]} 16. Bxf4 {[%emt 0:00:07]} Bd7 {[%emt 0:04:33]} 17. Bxg5 {[%emt 0:00:56]} Qxg5 {[%emt 0:00:15]} 18. Qxg5 {[%emt 0:00:35]} hxg5 {[%emt 0:00:02]} 19. Rxf8+ {[%emt 0:00:22]} Rxf8 {[%emt 0:04:39]} 20. Re1 {[%emt 0:00:09]} a5 {[%emt 0:01:16]} 21. Be4 {[%emt 0:04:59]} Kf7 {[%emt 0:03:48]} 22. Rf1+ {[%emt 0:01:07]} Ke7 {[%emt 0:00:01]} 23. Rxf8 {[%emt 0:00:10]} Kxf8 {[%emt 0:00:01]} 24. Kf2 {[%emt 0:00:08]} Ke7 {[%emt 0:00:22]} 25. Ke3 {[%emt 0:00:19]} c5 {[%emt 0:02:02]} 26. dxc6 {[%emt 0:03:10]} bxc6 {[%emt 0:00:08]} 27. c5 {[%emt 0:10:49]} dxc5 {[%emt 0:00:12]} 28. Kd3 {[%emt 0:00:09]} Be6 {[%emt 0:03:48]} 29. a3 {[%emt 0:00:05]} Bd5 {[%emt 0:00:30]} 30. Bf5 {[%emt 0:00:08]} Kd6 {[%emt 0:00:55]} 31. Bh3 {[%emt 0:00:29]} Bf3 {[%emt 0:01:43]} 32. Kc4 {[%emt 0:06:38]} Bd5+ {[%emt 0:02:43]} 33. Kd3 {[%emt 0:00:11]} Ke5 {[%emt 0:00:17]} 34. Bf1 {[%emt 0:00:56]} g4 {[%emt 0:01:27]} 35. Ke3 {[%emt 0:04:12]} c4 {[%emt 0:01:12]} 36. Be2 {[%emt 0:00:41]} Be6 {[%emt 0:00:08]} 37. Bd1 {[%emt 0:00:50]} g6 {[%emt 0:01:23]} 38. Ba4 {[%emt 0:00:49]} Kd5 {[%emt 0:00:32]} 39. Bd1 {[%emt 0:00:36]} g5 {[%emt 0:03:00]} 40. Bc2 {[%emt 0:00:13]} Ke5 {[%emt 0:00:42]} 41. Be4 {[%emt 0:01:56]} Bd5 {[%emt 0:00:12]} 42. Bh7 {[%emt 0:00:09]} Be6 {[%emt 0:00:10]} 43. Be4 {[%emt 0:00:07]} Bd5 {[%emt 0:00:03]} 44. Bh7 {[%emt 0:00:10]} 1/2-1/2

[Event "Panchenko Memorial 2019"]
[Site "Chelyabinsk"]
[Date "2019.09.16"]
[Round "8.3"]
[White "Lobanov, Sergei"]
[Black "Tologontegin, Semetey"]
[Result "1-0"]
[ECO "B06"]
[WhiteElo "2515"]
[BlackElo "2369"]
[Annotator "ChessBase"]
[PlyCount "157"]
[EventDate "2019.09.09"]
[EventType "swiss"]
[EventCountry "RUS"]
[SourceTitle "playchess.com"]
[Source "ChessBase"]
[SourceQuality "1"]
[TimeControl "5400+30"]

1. e4 {[%emt 0:00:00]} g6 {[%emt 0:01:40]} 2. d4 {[%emt 0:00:00]} Bg7 {[%emt 0:00:07]} 3. Nc3 {[%emt 0:00:00]} c6 {[%emt 0:00:05]} 4. f4 {[%emt 0:00:03]} d5 {[%emt 0:00:06]} 5. e5 {[%emt 0:00:04]} Nh6 {[%emt 0:00:05]} 6. Nf3 {[%emt 0:00:05]} Bg4 {[%emt 0:00:08]} 7. h3 {[%emt 0:00:08]} Bxf3 {[%emt 0:00:04]} 8. Qxf3 {[%emt 0:00:05]} f6 {[%emt 0:01:04]} 9. h4 {[%emt 0:00:04]} Nf5 {[%emt 0:33:55]} 10. Ne2 {[%emt 0:00:12]} c5 {[%emt 0:12:45]} 11. g4 {[%emt 0:19:24]} Nxd4 {[%emt 0:00:05]} 12. Nxd4 {[%emt 0:00:02]} cxd4 {[%emt 0:00:07]} 13. exf6 {[%emt 0:00:03]} exf6 {[%emt 0:04:30]} 14. Bd2 {[%emt 0:00:44]} Nc6 {[%emt 0:23:07]} 15. O-O-O {[%emt 0:00:06]} Qd6 {[%emt 0:00:01]} 16. Re1+ {[%emt 0:00:11]} Kf7 {[%emt 0:00:03]} 17. Bd3 {[%emt 0:04:29]} Rhe8 {[%emt 0:04:42]} 18. Ref1 {[%emt 0:02:56]} Rad8 {[%emt 0:02:52]} 19. a3 {[%emt 0:00:06]} Qc7 {[%emt 0:05:50]} 20. h5 {[%emt 0:02:19]} Na5 {[%emt 0:00:10]} 21. hxg6+ {[%emt 0:04:54]} hxg6 {[%emt 0:00:01]} 22. Rh7 {[%emt 0:00:35]} Nb3+ {[%emt 0:00:10]} 23. Kd1 {[%emt 0:00:01]} Nxd2 {[%emt 0:02:15]} 24. Kxd2 {[%emt 0:00:01]} Qa5+ {[%emt 0:01:01]} 25. Kd1 {[%emt 0:00:25]} Re3 {[%emt 0:00:17]} 26. Bxg6+ {[%emt 0:26:27]} Kxg6 {[%emt 0:00:34]} 27. Qh1 {[%emt 0:00:04]} Kf7 {[%emt 0:00:22]} 28. Qh5+ {[%emt 0:00:05]} Kf8 {[%emt 0:04:31]} 29. Qg6 {[%emt 0:00:04]} Qc7 {[%emt 0:02:02]} 30. Rfh1 {[%emt 0:00:04]} Qf7 {[%emt 0:00:44]} 31. Rh8+ {[%emt 0:00:11]} Bxh8 {[%emt 0:00:16]} 32. Rxh8+ {[%emt 0:00:03]} Ke7 {[%emt 0:00:02]} 33. Qxf7+ {[%emt 0:00:17]} Kxf7 {[%emt 0:00:14]} 34. Rxd8 {[%emt 0:00:01]} Re4 {[%emt 0:02:21]} 35. Rxd5 {[%emt 0:01:30]} Ke6 {[%emt 0:00:26]} 36. Rf5 {[%emt 0:00:07]} b6 {[%emt 0:00:34]} 37. Kd2 {[%emt 0:02:20]} Re3 {[%emt 0:00:04]} 38. Rh5 {[%emt 0:03:58]} Rg3 {[%emt 0:00:07]} 39. g5 {[%emt 0:03:02]} fxg5 {[%emt 0:00:28]} 40. Rxg5 {[%emt 0:00:22]} Rf3 {[%emt 0:00:14]} 41. Rg7 {[%emt 0:00:04]} Rxf4 {[%emt 0:00:49]} 42. Rxa7 {[%emt 0:01:54]} Kd5 {[%emt 0:00:29]} 43. Rd7+ {[%emt 0:00:11]} Kc5 {[%emt 0:01:02]} 44. Rc7+ {[%emt 0:01:58]} Kd5 {[%emt 0:00:44]} 45. b3 {[%emt 0:00:08]} Rf1 {[%emt 0:00:32]} 46. a4 {[%emt 0:00:33]} Rh1 {[%emt 0:00:15]} 47. Rg7 {[%emt 0:00:05]} Rh2+ {[%emt 0:00:23]} 48. Kc1 {[%emt 0:00:03]} Kc6 {[%emt 0:00:41]} 49. Rg8 {[%emt 0:01:30]} Rh3 {[%emt 0:00:48]} 50. Rd8 {[%emt 0:00:20]} Rh4 {[%emt 0:00:22]} 51. Rc8+ {[%emt 0:00:26]} Kd7 {[%emt 0:00:19]} 52. Rc4 {[%emt 0:00:06]} Kd6 {[%emt 0:00:02]} 53. Kb2 {[%emt 0:00:06]} Kd5 {[%emt 0:00:48]} 54. Ka3 {[%emt 0:00:11]} Rh3 {[%emt 0:00:43]} 55. Rc8 {[%emt 0:01:50]} Kd6 {[%emt 0:00:29]} 56. Kb4 {[%emt 0:00:18]} Kd7 {[%emt 0:00:41]} 57. Rc4 {[%emt 0:00:07]} Rh5 {[%emt 0:00:36]} 58. Rxd4+ {[%emt 0:00:06]} Kc6 {[%emt 0:00:01]} 59. Rg4 {[%emt 0:00:14]} Rf5 {[%emt 0:00:36]} 60. c4 {[%emt 0:00:37]} Rf3 {[%emt 0:00:15]} 61. Rg6+ {[%emt 0:00:07]} Kb7 {[%emt 0:00:16]} 62. Rg5 {[%emt 0:00:03]} Ka6 {[%emt 0:01:24]} 63. a5 {[%emt 0:00:29]} bxa5+ {[%emt 0:00:04]} 64. Rxa5+ {[%emt 0:00:02]} Kb6 {[%emt 0:00:06]} 65. Rh5 {[%emt 0:00:07]} Rg3 {[%emt 0:00:15]} 66. Rh6+ {[%emt 0:00:04]} Kb7 {[%emt 0:00:35]} 67. c5 {[%emt 0:00:04]} Rf3 {[%emt 0:00:04]} 68. Kc4 {[%emt 0:00:03]} Rg3 {[%emt 0:00:04]} 69. b4 {[%emt 0:00:03]} Rg7 {[%emt 0:00:31]} 70. Kb5 {[%emt 0:00:07]} Rf7 {[%emt 0:00:17]} 71. Rd6 {[%emt 0:00:07]} Ka7 {[%emt 0:00:22]} 72. Kc6 {[%emt 0:00:12]} Ka6 {[%emt 0:00:36]} 73. b5+ {[%emt 0:01:25]} Ka5 {[%emt 0:00:06]} 74. b6 {[%emt 0:00:03]} Ka6 {[%emt 0:00:18]} 75. Rd7 {[%emt 0:00:36]} Rf6+ {[%emt 0:00:09]} 76. Kc7 {[%emt 0:00:09]} Rf8 {[%emt 0:00:41]} 77. b7 {[%emt 0:00:19]} Ka7 {[%emt 0:00:13]} 78. c6 {[%emt 0:00:08]} Rh8 {[%emt 0:00:33]} 79. Rd8 {[%emt 0:00:13]} 1-0

[Event "Panchenko Memorial 2019"]
[Site "Chelyabinsk"]
[Date "2019.09.16"]
[Round "8.4"]
[White "Vokarev, Sergey"]
[Black "Stupak, Kirill"]
[Result "1/2-1/2"]
[ECO "C01"]
[WhiteElo "2443"]
[BlackElo "2551"]
[Annotator "ChessBase"]
[PlyCount "56"]
[EventDate "2019.09.09"]
[EventType "swiss"]
[EventCountry "RUS"]
[SourceTitle "playchess.com"]
[Source "ChessBase"]
[SourceQuality "1"]
[TimeControl "5400+30"]

1. e4 {[%emt 0:00:00]} e6 {[%emt 0:07:51]} 2. d4 {[%emt 0:00:04]} d5 {[%emt 0:00:03]} 3. exd5 {[%emt 0:00:23]} exd5 {[%emt 0:00:09]} 4. Nf3 {[%emt 0:00:06]} Nc6 {[%emt 0:01:35]} 5. Bb5 {[%emt 0:01:09]} Bd6 {[%emt 0:01:18]} 6. c4 {[%emt 0:01:05]} dxc4 {[%emt 0:03:55]} 7. d5 {[%emt 0:01:40]} a6 {[%emt 0:00:03]} 8. Ba4 {[%emt 0:00:05]} b5 {[%emt 0:00:02]} 9. dxc6 {[%emt 0:00:07]} bxa4 {[%emt 0:00:02]} 10. O-O {[%emt 0:00:09]} Ne7 {[%emt 0:00:20]} 11. Nbd2 {[%emt 0:01:01]} Nxc6 {[%emt 0:29:24]} 12. Qxa4 {[%emt 0:11:43]} Bd7 {[%emt 0:00:37]} 13. Nxc4 {[%emt 0:03:32]} Be7 {[%emt 0:04:43]} 14. Qc2 {[%emt 0:08:07]} O-O {[%emt 0:02:53]} 15. a3 {[%emt 0:01:12]} Qc8 {[%emt 0:03:03]} 16. Nce5 {[%emt 0:03:32]} Nxe5 {[%emt 0:01:08]} 17. Nxe5 {[%emt 0:00:05]} Bf5 {[%emt 0:01:14]} 18. Nc6 {[%emt 0:00:16]} Bxc2 {[%emt 0:01:29]} 19. Nxe7+ {[%emt 0:00:05]} Kh8 {[%emt 0:00:02]} 20. Nxc8 {[%emt 0:00:06]} Raxc8 {[%emt 0:00:13]} 21. Re1 {[%emt 0:00:21]} Rfe8 {[%emt 0:00:16]} 22. Rxe8+ {[%emt 0:00:08]} Rxe8 {[%emt 0:00:02]} 23. Bd2 {[%emt 0:00:08]} Ba4 {[%emt 0:00:34]} 24. Re1 {[%emt 0:00:07]} Rxe1+ {[%emt 0:00:02]} 25. Bxe1 {[%emt 0:00:06]} Bb5 {[%emt 0:00:01]} 26. Bd2 {[%emt 0:00:07]} Ba4 {[%emt 0:00:03]} 27. Be1 {[%emt 0:00:04]} Bb5 {[%emt 0:00:02]} 28. Bd2 {[%emt 0:00:05]} Ba4 {[%emt 0:00:02]} 1/2-1/2

[Event "Panchenko Memorial 2019"]
[Site "Chelyabinsk"]
[Date "2019.09.16"]
[Round "8.6"]
[White "Nugumanov, Bakhtiyar"]
[Black "Gabrielian, Artur"]
[Result "0-1"]
[ECO "B50"]
[WhiteElo "2387"]
[BlackElo "2466"]
[Annotator "ChessBase"]
[PlyCount "86"]
[EventDate "2019.09.09"]
[EventType "swiss"]
[EventCountry "RUS"]
[SourceTitle "playchess.com"]
[Source "ChessBase"]
[SourceQuality "1"]
[TimeControl "5400+30"]

1. e4 {[%emt 0:00:00]} c5 {[%emt 0:02:52]} 2. Nf3 {[%emt 0:00:00]} d6 {[%emt 0:00:38]} 3. Bc4 {[%emt 0:00:23]} Nc6 {[%emt 0:02:17]} 4. c3 {[%emt 0:00:55]} Nf6 {[%emt 0:00:19]} 5. d3 {[%emt 0:00:59]} g6 {[%emt 0:00:33]} 6. O-O {[%emt 0:00:28]} Bg7 {[%emt 0:00:03]} 7. Re1 {[%emt 0:01:18]} O-O {[%emt 0:00:16]} 8. Bb3 {[%emt 0:00:41]} b5 {[%emt 0:01:36]} 9. h3 {[%emt 0:02:26]} Bb7 {[%emt 0:01:17]} 10. Nbd2 {[%emt 0:03:58]} b4 {[%emt 0:08:11]} 11. Nf1 {[%emt 0:09:39]} Nd7 {[%emt 0:08:23]} 12. d4 {[%emt 0:03:37]} bxc3 {[%emt 0:01:33]} 13. bxc3 {[%emt 0:00:02]} cxd4 {[%emt 0:04:08]} 14. cxd4 {[%emt 0:00:26]} Rb8 {[%emt 0:13:46]} 15. Rb1 {[%emt 0:05:39]} Na5 {[%emt 0:02:17]} 16. Bc2 {[%emt 0:00:59]} Qc7 {[%emt 0:00:24]} 17. Bg5 {[%emt 0:03:56]} Rfc8 {[%emt 0:04:44]} 18. Rc1 {[%emt 0:03:37]} Nc6 {[%emt 0:02:25]} 19. Bb3 {[%emt 0:03:57]} Qb6 {[%emt 0:02:06]} 20. Ne3 {[%emt 0:08:22]} Nxd4 {[%emt 0:05:01]} 21. Rxc8+ {[%emt 0:05:41]} Rxc8 {[%emt 0:02:00]} 22. Nxd4 {[%emt 0:02:20]} Bxd4 {[%emt 0:03:57]} 23. Bxe7 {[%emt 0:01:21]} Re8 {[%emt 0:01:22]} 24. Nc4 {[%emt 0:05:39]} Bxf2+ {[%emt 0:01:17]} 25. Kh1 {[%emt 0:00:50]} Qb4 {[%emt 0:06:13]} 26. Rf1 {[%emt 0:02:48]} Rxe7 {[%emt 0:00:24]} 27. Rxf2 {[%emt 0:01:35]} Rxe4 {[%emt 0:03:47]} 28. Kh2 {[%emt 0:11:08]} d5 {[%emt 0:05:15]} 29. Qf3 {[%emt 0:02:37]} Qe7 {[%emt 0:01:43]} 30. Na5 {[%emt 0:00:38]} Nc5 {[%emt 0:02:08]} 31. Qg3 {[%emt 0:02:30]} Nxb3 {[%emt 0:06:01]} 32. axb3 {[%emt 0:02:49]} Bc8 {[%emt 0:01:46]} 33. Rc2 {[%emt 0:03:14]} Bf5 {[%emt 0:01:53]} 34. Rc7 {[%emt 0:00:15]} Qf6 {[%emt 0:01:37]} 35. Rxa7 {[%emt 0:00:45]} Re2 {[%emt 0:01:12]} 36. Ra8+ {[%emt 0:02:37]} Kg7 {[%emt 0:00:01]} 37. Qb8 {[%emt 0:00:36]} Rxg2+ {[%emt 0:02:20]} 38. Kxg2 {[%emt 0:00:05]} Be4+ {[%emt 0:00:15]} 39. Kg1 {[%emt 0:01:07]} Qd4+ {[%emt 0:00:17]} 40. Kf1 {[%emt 0:00:46]} Qd1+ {[%emt 0:00:05]} 41. Kf2 {[%emt 0:00:11]} Qd2+ {[%emt 0:00:16]} 42. Kf1 {[%emt 0:00:27]} Bd3+ {[%emt 0:00:09]} 43. Kg1 {[%emt 0:00:25]} Qe1+ {[%emt 0:00:11]} 0-1

[Event "Panchenko Memorial 2019"]
[Site "Chelyabinsk"]
[Date "2019.09.16"]
[Round "8.7"]
[White "Korneev, Oleg"]
[Black "Radzhabov, Rodion"]
[Result "1/2-1/2"]
[ECO "B47"]
[WhiteElo "2511"]
[BlackElo "2384"]
[Annotator "ChessBase"]
[PlyCount "120"]
[EventDate "2019.09.09"]
[EventType "swiss"]
[EventCountry "RUS"]
[SourceTitle "playchess.com"]
[Source "ChessBase"]
[SourceQuality "1"]
[TimeControl "5400+30"]

1. e4 {[%emt 0:10:34]} c5 {[%emt 0:00:00]} 2. Nf3 {[%emt 0:00:11]} Nc6 {[%emt 0:00:00]} 3. d4 {[%emt 0:00:08]} cxd4 {[%emt 0:00:00]} 4. Nxd4 {[%emt 0:00:01]} Qc7 {[%emt 0:00:00]} 5. Nc3 {[%emt 0:00:18]} e6 {[%emt 0:00:09]} 6. Be2 {[%emt 0:00:12]} a6 {[%emt 0:00:07]} 7. O-O {[%emt 0:00:07]} Nf6 {[%emt 0:00:09]} 8. Be3 {[%emt 0:00:10]} Bb4 {[%emt 0:00:14]} 9. Na4 {[%emt 0:00:08]} Be7 {[%emt 0:00:05]} 10. Nxc6 {[%emt 0:00:04]} bxc6 {[%emt 0:00:05]} 11. Nb6 {[%emt 0:00:03]} Rb8 {[%emt 0:00:04]} 12. Nxc8 {[%emt 0:00:03]} Qxc8 {[%emt 0:00:05]} 13. Bd4 {[%emt 0:00:04]} Qc7 {[%emt 0:01:05]} 14. e5 {[%emt 0:03:05]} Nd5 {[%emt 0:00:05]} 15. c4 {[%emt 0:00:47]} Nf4 {[%emt 0:00:07]} 16. g3 {[%emt 0:00:03]} Ng6 {[%emt 0:03:33]} 17. Qd2 {[%emt 0:10:29]} c5 {[%emt 0:04:21]} 18. Bc3 {[%emt 0:00:11]} O-O {[%emt 0:00:24]} 19. Rad1 {[%emt 0:05:28]} Nxe5 {[%emt 0:10:27]} 20. f4 {[%emt 0:00:30]} Nc6 {[%emt 0:00:08]} 21. Qxd7 {[%emt 0:01:16]} Qxd7 {[%emt 0:08:52]} 22. Rxd7 {[%emt 0:00:03]} Rfd8 {[%emt 0:00:16]} 23. Rc7 {[%emt 0:06:21]} Rdc8 {[%emt 0:01:16]} 24. Rxc8+ {[%emt 0:02:31]} Rxc8 {[%emt 0:00:05]} 25. f5 {[%emt 0:07:12]} Nd4 {[%emt 0:25:27]} 26. Bxd4 {[%emt 0:00:27]} cxd4 {[%emt 0:00:53]} 27. Kg2 {[%emt 0:02:12]} e5 {[%emt 0:14:32]} 28. Kf3 {[%emt 0:02:04]} a5 {[%emt 0:00:48]} 29. Ke4 {[%emt 0:02:23]} f6 {[%emt 0:00:08]} 30. Bd1 {[%emt 0:09:44]} Kf8 {[%emt 0:00:55]} 31. Kd3 {[%emt 0:00:15]} Rb8 {[%emt 0:03:55]} 32. Rf2 {[%emt 0:00:08]} Ke8 {[%emt 0:11:18]} 33. Ba4+ {[%emt 0:00:36]} Kd8 {[%emt 0:00:05]} 34. Rc2 {[%emt 0:02:17]} Bc5 {[%emt 0:00:22]} 35. Bc6 {[%emt 0:00:44]} Kc7 {[%emt 0:00:25]} 36. Be4 {[%emt 0:00:04]} Kd6 {[%emt 0:00:38]} 37. g4 {[%emt 0:00:04]} h6 {[%emt 0:00:14]} 38. h4 {[%emt 0:00:03]} Ke7 {[%emt 0:01:14]} 39. Rg2 {[%emt 0:00:07]} Kd7 {[%emt 0:10:57]} 40. Kc2 {[%emt 0:14:59]} Be7 {[%emt 0:00:11]} 41. Rg3 {[%emt 0:00:08]} Rb4 {[%emt 0:02:13]} 42. Bd5 {[%emt 0:00:32]} Kd6 {[%emt 0:00:16]} 43. a3 {[%emt 0:00:13]} Rb6 {[%emt 0:00:16]} 44. Rb3 {[%emt 0:00:40]} Rxb3 {[%emt 0:00:51]} 45. Kxb3 {[%emt 0:00:06]} Kc5 {[%emt 0:00:45]} 46. Kc2 {[%emt 0:01:21]} Bf8 {[%emt 0:00:34]} 47. Kd3 {[%emt 0:03:04]} Bd6 {[%emt 0:00:11]} 48. Bf3 {[%emt 0:00:24]} Bc7 {[%emt 0:01:02]} 49. Be2 {[%emt 0:00:07]} Bd8 {[%emt 0:01:06]} 50. Ke4 {[%emt 0:00:18]} Bc7 {[%emt 0:00:25]} 51. Bd3 {[%emt 0:00:06]} Bb8 {[%emt 0:00:35]} 52. Kf3 {[%emt 0:00:26]} Bc7 {[%emt 0:00:31]} 53. Ke2 {[%emt 0:00:26]} e4 {[%emt 0:00:36]} 54. Bxe4 {[%emt 0:00:14]} Kxc4 {[%emt 0:00:03]} 55. Bc2 {[%emt 0:00:17]} Bf4 {[%emt 0:01:05]} 56. a4 {[%emt 0:15:50]} Bc1 {[%emt 0:00:17]} 57. Bd3+ {[%emt 0:00:24]} Kb4 {[%emt 0:00:27]} 58. Bb5 {[%emt 0:00:21]} Bxb2 {[%emt 0:00:12]} 59. Kd3 {[%emt 0:00:02]} Kc5 {[%emt 0:00:09]} 60. h5 {[%emt 0:01:32]} Bc1 {[%emt 0:00:27]} 1/2-1/2